fUST/lending_fUST_20260110
["ID","MTS","AMOUNT","RATE_DAILY","PERIOD"]
[401150572,1767979831940,-433.18211007,0.0001,2]
[401150638,1767979837913,-3304.54148946,0.0001,2]
[401150640,1767979837924,-11880.57819246,0.0001,2]
[401150642,1767979837934,-532.21930964,0.0001,2]
[401150644,1767979837943,-156.01082675,0.000101,2]
[401150646,1767979837953,-300.0,0.00010199,2]
[401150648,1767979837963,-300.0,0.00010199,2]
[401150650,1767979837972,-300.0,0.00010199,2]
[401150652,1767979837982,-300.0,0.00010199,2]
[401150654,1767979837991,-300.0,0.00010199,2]
[401150656,1767979838000,-300.0,0.00010199,2]
[401150658,1767979838010,-300.0,0.00010199,2]
[401150660,1767979838020,-300.0,0.00010199,2]
[401150663,1767979838029,-300.0,0.00010199,2]
[401150665,1767979838045,-300.0,0.00010199,2]
[401150668,1767979838059,-300.0,0.00010199,2]
[401150669,1767979838068,-300.0,0.00010199,2]
[401150671,1767979838079,-300.0,0.00010199,2]
[401150673,1767979838089,-300.0,0.00010199,2]
[401150675,1767979838099,-100.8910429,0.00010199,2]
[401150680,1767979838140,-199.1089571,0.00010199,2]
[401150682,1767979838150,-600.0,0.00010402,2]
[401150684,1767979838160,-720.0,0.00011442,2]
[401150686,1767979838169,-184.09277557,0.000121,2]
[401150688,1767979838179,-864.0,0.00012586,2]
[401150691,1767979838188,-500.0,0.00013273,2]
[401150692,1767979838198,-153.37341953,0.00013273,2]
[401150694,1767979838208,-3789.85,0.0001369,2]
[401150696,1767979838218,-567.77888553,0.00013821,2]
[401150698,1767979838228,-1000.0,0.00013845,2]
[401150700,1767979838237,-212.17472438,0.000141,2]
[401150702,1767979838248,-883.07036259,0.00014355,2]
[401150705,1767979838260,-1968.31557411,0.00014355,2]
[401150707,1767979838271,-3203.3638029,0.00014355,2]
[401150709,1767979838280,-391.0422476,0.00014355,2]
[401150711,1767979838290,-889.1676842,0.00014859,2]
[401150713,1767979838299,-302.0,0.00015,2]
[401150715,1767979838309,-1967.6386481,0.00015065,2]
[401150716,1767979838319,-1000.0,0.0001523,2]
[401150719,1767979838328,-244.0,0.0001523,2]
[401150720,1767979838338,-500.0,0.00015293,2]
[401150722,1767979838348,-500.0,0.00015989,2]
[401150724,1767979838357,-500.0,0.00015989,2]
[401150726,1767979838367,-500.0,0.00015989,2]
[401150728,1767979838378,-500.0,0.00015989,2]
[401150730,1767979838388,-500.0,0.00015989,2]
[401150732,1767979838398,-500.0,0.00015989,2]
[401150734,1767979838407,-511.04279398,0.00015989,2]
[401150736,1767979838416,-500.0,0.00015989,2]
[401150738,1767979838426,-500.0,0.00015989,2]
[401150740,1767979838435,-500.0,0.00015989,2]
[401150742,1767979838445,-500.0,0.00015989,2]
[401150744,1767979838457,-500.0,0.00015989,2]
[401150746,1767979838468,-500.0,0.00015989,2]
[401150748,1767979838478,-500.0,0.00015989,2]
[401150750,1767979838487,-500.0,0.00015989,2]
[401150752,1767979838497,-500.0,0.00015989,2]
[401150754,1767979838509,-500.0,0.00015989,2]
[401150756,1767979838523,-290.86125079,0.00015989,2]
[401150757,1767979838534,-500.0,0.00015989,2]
[401150759,1767979838544,-500.0,0.00015989,2]
[401150760,1767979838554,-500.0,0.00015989,2]
[401150761,1767979838564,-500.0,0.00015989,2]
[401150762,1767979838574,-500.0,0.00015989,2]
[401150763,1767979838584,-500.0,0.00015989,2]
[401150764,1767979838594,-500.0,0.00015989,2]
[401150765,1767979838603,-500.0,0.00015989,2]
[401150766,1767979838613,-500.0,0.00015989,2]
[401150768,1767979838622,-500.0,0.00015989,2]
[401150769,1767979838632,-500.0,0.00015989,2]
[401150771,1767979838642,-500.0,0.00015989,2]
[401150773,1767979838651,-500.0,0.00015989,2]
[401150774,1767979838661,-500.0,0.00015989,2]
[401150776,1767979838671,-500.0,0.00015989,2]
[401150778,1767979838681,-500.0,0.00015989,2]
[401150780,1767979838691,-500.0,0.00015989,2]
[401150782,1767979838701,-500.0,0.00015989,2]
[401150784,1767979838711,-500.0,0.00015989,2]
[401150785,1767979838721,-500.0,0.00015989,2]
[401150787,1767979838731,-500.0,0.00015989,2]
[401150789,1767979838740,-500.0,0.00015989,2]
[401150790,1767979838750,-500.0,0.00015989,2]
[401150791,1767979838760,-500.0,0.00015989,2]
[401150793,1767979838771,-500.0,0.00015989,2]
[401150794,1767979838781,-187.96875761,0.00015989,2]
[401150796,1767979838791,-500.0,0.00015989,2]
[401150798,1767979838800,-500.0,0.00015989,2]
[401150800,1767979838810,-500.0,0.00015989,2]
[401150802,1767979838820,-500.0,0.00015989,2]
[401150804,1767979838830,-500.0,0.00015989,2]
[401150805,1767979838840,-500.0,0.00015989,2]
[401150806,1767979838849,-500.0,0.00015989,2]
[401150807,1767979838860,-500.0,0.00015989,2]
[401150809,1767979838870,-500.0,0.00015989,2]
[401150810,1767979838880,-500.0,0.00015989,2]
[401150811,1767979838890,-500.0,0.00015989,2]
[401150812,1767979838901,-165.0258846,0.00015989,2]
[401150813,1767979838911,-100000.0,0.0001599,2]
[401150814,1767979838921,-1000.0,0.00016,2]
[401150815,1767979838931,-240.2566732,0.000161,2]
[401150816,1767979838941,-2540.0800831,0.00016153,2]
[401150817,1767979838950,-3203.3638029,0.00016167,2]
[401150818,1767979838960,-501.17078603,0.00016218,2]
[401150819,1767979838970,-500.0,0.00016218,2]
[401150820,1767979838980,-500.0,0.00016218,2]
[401150821,1767979838990,-500.0,0.00016218,2]
[401150822,1767979838999,-500.0,0.00016218,2]
[401150823,1767979839008,-500.0,0.00016218,2]
[401150824,1767979839017,-500.0,0.00016218,2]
[401150825,1767979839027,-500.0,0.00016218,2]
[401150826,1767979839036,-318.46249002,0.00016218,2]
[401150827,1767979839046,-218397.5777233,0.00016218,2]
[401150828,1767979839056,-1000.0,0.00016752,2]
[401150829,1767979839067,-492.0,0.00016752,2]
[401150830,1767979839076,-861.0385502,0.000169,2]
[401150831,1767979839086,-391.0422476,0.00016927,2]
[401150832,1767979839095,-2851.3859367,0.00016979,2]
[401150833,1767979839105,-54468.90538371,0.00017,2]
[401150834,1767979839114,-31822.86060854,0.0001701,3]
[401150835,1767979839123,-3203.3638029,0.0001798,2]
[401150836,1767979839132,-599.40407821,0.00017999,2]
[401150837,1767979839142,-599.40407821,0.00017999,2]
[401150838,1767979839152,-599.40407821,0.00017999,2]
[401150839,1767979839161,-356.89729723,0.00017999,2]
[401150840,1767979839171,-599.40407821,0.00017999,2]
[401150841,1767979839179,-599.40407821,0.00017999,2]
[401150842,1767979839189,-599.40407821,0.00017999,2]
[401150843,1767979839198,-599.40407821,0.00017999,2]
[401150844,1767979839207,-599.40407821,0.00017999,2]
[401150845,1767979839217,-599.40407821,0.00017999,2]
[401150846,1767979839226,-599.40407821,0.00017999,2]
[401150847,1767979839235,-599.40407821,0.00017999,2]
[401150848,1767979839245,-599.40407821,0.00017999,2]
[401150849,1767979839254,-599.40407821,0.00017999,2]
[401150850,1767979839264,-599.40407821,0.00017999,2]
[401150851,1767979839274,-599.40407821,0.00017999,2]
[401150852,1767979839283,-599.40407821,0.00017999,2]
[401150853,1767979839293,-599.40407821,0.00017999,2]
[401150854,1767979839301,-599.40407821,0.00017999,2]
[401150855,1767979839311,-599.40407821,0.00017999,2]
[401150856,1767979839321,-67813.83044904,0.00018,2]
[401150878,1767979840038,-14632.09088523,0.00018,2]
[401150882,1767979840093,-956.72075378,0.00018,2]
[401151127,1767979844204,-16213.92276521,0.00018,2]
[401151128,1767979844318,-1135.04524533,0.00018,2]
[401151129,1767979844335,-289.54641168,0.00018,2]
[401151138,1767979845933,-3359.46617756,0.00018,2]
[401151139,1767979845990,-253.7425319,0.00018,2]
[401151145,1767980182361,155.0,5e-05,2]
[401151150,1767980864042,299.99,0.00030136,120]
[401151151,1767980931867,-182.04668078,0.00023962,110]
[401151152,1767980952969,-5.17191942,0.00023962,110]
[401151153,1767980952991,-150.73471902,0.00023962,110]
[401151159,1767981032034,-157.57411041,0.00011015,2]
[401151160,1767981032044,-173.41,0.00011429,2]
[401151161,1767981032053,-207.53961379,0.00011618,2]
[401151162,1767981032063,-300.0,0.00012734,2]
[401151163,1767981032073,-300.0,0.00012735,2]
[401151164,1767981032082,-300.0,0.00012735,2]
[401151165,1767981032092,-300.0,0.00012735,2]
[401151166,1767981032101,-300.0,0.00012735,2]
[401151167,1767981032110,-300.0,0.00012735,2]
[401151168,1767981032121,-300.0,0.00012735,2]
[401151169,1767981032130,-36.1151191,0.00012735,2]
[401151171,1767981038031,-154.14,0.00011375,2]
[401151172,1767981038040,-173.41,0.00012007,2]
[401151173,1767981038050,-263.8848809,0.00012735,2]
[401151174,1767981038060,-300.0,0.00012735,2]
[401151175,1767981038069,-300.0,0.00012735,2]
[401151176,1767981038079,-300.0,0.00012735,2]
[401151177,1767981038088,-204.18622831,0.00012735,2]
[401151178,1767981038100,-95.81377169,0.00012735,2]
[401151179,1767981038109,-300.0,0.00012735,2]
[401151180,1767981038119,-300.0,0.00012735,2]
[401151181,1767981038130,-300.0,0.00012735,2]
[401151182,1767981038139,-24.32717829,0.00012735,2]
[401151188,1767981040231,-275.67282171,0.00012735,2]
[401151189,1767981040241,-219.46,0.00012735,2]
[401151190,1767981040250,-338.68132117,0.00012939,2]
[401151191,1767981040261,-6284.81558367,0.00012939,2]
[401151192,1767981040270,-600.0,0.00012989,2]
[401151193,1767981040279,-185.93745028,0.00013015,2]
[401151194,1767981040288,-500.0,0.00013273,2]
[401151195,1767981040297,-500.0,0.00013698,2]
[401151196,1767981040307,-500.0,0.00013699,2]
[401151197,1767981040316,-1000.0,0.00013821,2]
[401151198,1767981040325,-420.0,0.00013969,2]
[401151199,1767981040335,-1000.0,0.00014247,2]
[401151200,1767981040344,-720.0,0.00014288,2]
[401151201,1767981040353,-1500.0,0.00014368,2]
[401151202,1767981040362,-1500.0,0.00014795,2]
[401151203,1767981040370,-214.30079016,0.00015015,2]
[401151204,1767981040378,-180.108878,0.00015068,2]
[401151205,1767981040387,-555.57255906,0.00015342,2]
[401151206,1767981040396,-600.35832052,0.00015371,2]
[401151207,1767981040406,-864.0,0.00015716,2]
[401151208,1767981040415,-601.0,0.00016,2]
[401151209,1767981040424,-374.48368099,0.00016083,2]
[401151210,1767981040433,-157.4,0.00016631,2]
[401151211,1767981040442,-8295.9674462,0.00016862,2]
[401151212,1767981040451,-800.8409508,0.00016862,2]
[401151213,1767981040460,-2236.3000144,0.00016862,2]
[401151214,1767981040475,-195.5211238,0.00016862,2]
[401151215,1767981040486,-1822.14046832,0.00016873,2]
[401151216,1767981040498,-800.8409507,0.00016874,2]
[401151217,1767981040510,-242.66413003,0.00017015,2]
[401151218,1767981040521,-1000.0,0.00017288,2]
[401151219,1767981040533,-2672.93720655,0.00017562,2]
[401151220,1767981040545,-500.0,0.00017999,2]
[401151221,1767981040555,-365.65125009,0.00017999,2]
[401151222,1767981040567,-500.0,0.00017999,2]
[401151223,1767981040577,-500.0,0.00017999,2]
[401151224,1767981040587,-154.35575128,0.00017999,2]
[401151225,1767981040597,-500.0,0.00017999,2]
[401151226,1767981040606,-500.0,0.00017999,2]
[401151229,1767981040622,-394.99759704,0.00017999,2]
[401151231,1767981040633,-631.99652862,0.00017999,2]
[401151233,1767981040645,-518.3362094,0.00017999,2]
[401151236,1767981040656,-25921.11641026,0.00018,2]
[401151238,1767981040667,-3140.92195732,0.00018,5]
[401151240,1767981040677,-30003.68823938,0.00018,2]
[401151242,1767981040688,-157.4,0.00018101,2]
[401151244,1767981040699,-5000.0,0.00018899,2]
[401151246,1767981040710,-119267.03231313,0.000189,5]
[401151249,1767981040721,-303.10001607,0.000189,2]
[401151251,1767981040732,-1366.0,0.00018933,2]
[401151253,1767981040743,-2146.0,0.00018933,2]
[401151255,1767981040754,-628.0,0.00018933,2]
[401151257,1767981040765,-417.0,0.00018933,2]
[401151260,1767981040779,-714.0,0.00018933,2]
[401151262,1767981040791,-800.8409507,0.00018954,2]
[401151264,1767981040802,-800.8409508,0.00018973,2]
[401151266,1767981040813,-271.0274699,0.00019015,2]
[401151268,1767981040826,-1000.0,0.00019017,2]
[401151270,1767981040837,-244.0,0.00019017,2]
[401151273,1767981040848,-8295.9674462,0.00019032,2]
[401151275,1767981040859,-301.0,0.00019154,2]
[401151277,1767981040869,-167.68,0.000193,2]
[401151279,1767981040881,-162.05,0.000193,2]
[401151281,1767981040892,-164.18,0.000193,2]
[401151283,1767981040902,-364.0,0.00019372,2]
[401151286,1767981040916,-157.4,0.00019571,2]
[401151288,1767981040927,-180.02880461,0.00019647,2]
[401151290,1767981040937,-195.5211238,0.00019701,2]
[401151292,1767981040948,-1180.74073292,0.00019783,2]
[401151295,1767981040962,-923.01,0.00019783,2]
[401151490,1767981044099,-5598.97004401,0.00014268,2]
[401151491,1767981044153,-7238.66817982,0.00014268,2]
[401151492,1767981044790,-256.2,0.00014268,2]
[401151493,1767981044803,-672.80841133,0.00014268,2]
[401151494,1767981044817,-7076.86593956,0.00014268,2]
[401151495,1767981044830,-1226.23496093,0.00014268,2]
[401151496,1767981044843,-250.0,0.00014306,2]
[401151497,1767981044857,-132.54928148,0.00019783,2]
[401151498,1767981044868,-1041.66666667,0.00019841,2]
[401151499,1767981044880,-161.03,0.000199,2]
[401151500,1767981044892,-2345.40380212,0.000199,2]
[401151501,1767981044904,-192.0,0.00019945,3]
[401151502,1767981044914,-7693.26091871,0.0001999,2]
[401151503,1767981044926,-1127.51718992,0.0001999,2]
[401151538,1767982238226,-166.598701,0.00011458,2]
[401151539,1767982238236,-500.0,0.00013273,2]
[401151540,1767982238244,-500.0,0.00013699,2]
[401151541,1767982238254,-910.950714,0.00013821,2]
[401151542,1767982238265,-89.049286,0.00013821,2]
[401151543,1767982238275,-1000.0,0.00014247,2]
[401151544,1767982238284,-1500.0,0.00014368,2]
[401151545,1767982238293,-177.0,0.00014578,2]
[401151546,1767982238302,-1500.0,0.00014795,2]
[401151547,1767982238311,-1045.00690479,0.00014916,2]
[401151548,1767982238320,-212.9974071,0.00015132,2]
[401151549,1767982238329,-300.0,0.00015341,2]
[401151550,1767982238339,-1872.30385945,0.00015341,2]
[401151551,1767982238348,-2000.0,0.00015342,2]
[401151552,1767982238357,-2379.03607709,0.0001589,2]
[401151553,1767982238366,-1000.0,0.00016,2]
[401151554,1767982238376,-300.0,0.00016207,2]
[401151555,1767982238386,-300.0,0.00016207,2]
[401151556,1767982238395,-300.0,0.00016207,2]
[401151558,1767982238405,-300.0,0.00016207,2]
[401151559,1767982238414,-300.0,0.00016207,2]
[401151560,1767982238424,-300.0,0.00016207,2]
[401151561,1767982238433,-300.0,0.00016207,2]
[401151562,1767982238443,-300.0,0.00016207,2]
[401151563,1767982238452,-300.0,0.00016207,2]
[401151565,1767982238463,-300.0,0.00016207,2]
[401151567,1767982238472,-300.0,0.00016207,2]
[401151569,1767982238482,-300.0,0.00016207,2]
[401151571,1767982238492,-300.0,0.00016207,2]
[401151573,1767982238501,-300.0,0.00016207,2]
[401151574,1767982238512,-300.0,0.00016207,2]
[401151576,1767982238522,-600.0,0.0001653,2]
[401151577,1767982238532,-204.0,0.00016578,2]
[401151578,1767982238542,-319.0,0.00016785,2]
[401151579,1767982238551,-1000.0,0.00016939,2]
[401151580,1767982238561,-18.24717608,0.00017759,2]
[401151581,1767982238573,-1780.11584908,0.00017759,2]
[401151582,1767982238584,-725.10991683,0.00017759,2]
[401151583,1767982238594,-2388.67759846,0.00017824,2]
[401151621,1767982240427,-134.79534353,0.00017824,2]
[401151623,1767982240436,-720.0,0.00018183,2]
[401151624,1767982240447,-1295.71465647,0.00018223,2]
[401151629,1767982240480,-1227.75828552,0.00018223,2]
[401151631,1767982240490,-3354.54171448,0.00018314,2]
[401151636,1767982240534,-1135.23247575,0.00018314,2]
[401151876,1767982244423,-58.63000827,0.00018314,2]
[401151877,1767982244433,-1118.1500072,0.00018314,2]
[401151878,1767982244443,-195.5211239,0.00018314,2]
[401151879,1767982244452,-1541.17617129,0.00018415,2]
[401151880,1767982244464,-982.2967707,0.00018415,2]
[401151881,1767982244645,-231.0,0.00018578,2]
[401151882,1767982244656,-1565.76816054,0.00018869,2]
[401151883,1767982244669,-957.70478145,0.00018869,2]
[401151884,1767982244679,-303.10001603,0.000189,2]
[401151885,1767982244689,-2523.47294199,0.00019014,2]
[401151886,1767982244699,-279.72226059,0.00019032,2]
[401151887,1767982245186,-1133.23741433,0.00019032,2]
[401151888,1767982245197,-303.10001603,0.00019089,2]
[401151889,1767982245206,-1366.0,0.00019132,2]
[401151890,1767982245215,-2146.0,0.00019132,2]
[401151891,1767982245224,-628.0,0.00019132,2]
[401151892,1767982245234,-417.0,0.00019132,2]
[401151893,1767982245243,-417.0,0.00019132,2]
[401151894,1767982245252,-714.0,0.00019132,2]
[401151895,1767982245261,-196.35,0.00019132,2]
[401151896,1767982245270,-303.10001603,0.00019278,2]
[401151897,1767982245279,-2523.47294199,0.00019371,2]
[401151898,1767982245288,-151.0,0.00019389,2]
[401151899,1767982245296,-428.83033488,0.00019389,2]
[401151900,1767982245307,-414.09177835,0.00019389,2]
[401151901,1767982245319,-7127.65573944,0.00019389,2]
[401151913,1767982246270,-22029.42214733,0.00019389,2]
[401151915,1767982246280,-250.0,0.00019389,2]
[401151917,1767982246290,-478.75725327,0.00019389,2]
[401151918,1767982246300,-322.6107,0.00019389,2]
[401151919,1767982246309,-250.0,0.00019389,2]
[401151920,1767982246319,-250.0,0.00019389,2]
[401151921,1767982246329,-188.62982385,0.00019389,2]
[401151990,1767983432604,-367.25509587,0.0001,2]
[401151991,1767983432616,-65.9270142,0.0001,2]
[401151992,1767983432626,-500.0,0.00013273,2]
[401151993,1767983432636,-500.0,0.00013273,2]
[401151994,1767983432646,-500.0,0.00013273,2]
[401151995,1767983432660,-177.0,0.00013636,2]
[401151996,1767983432669,-434.09079843,0.0001369,2]
[401151997,1767983432680,-300.0,0.0001382,2]
[401151998,1767983432690,-1000.0,0.00013821,2]
[401151999,1767983432699,-1000.0,0.00013821,2]
[401152000,1767983432709,-1000.0,0.00013821,2]
[401152001,1767983432719,-300.0,0.00014096,2]
[401152002,1767983432729,-300.0,0.00014096,2]
[401152003,1767983432740,-300.0,0.00014096,2]
[401152004,1767983432750,-300.0,0.00014096,2]
[401152005,1767983432761,-300.0,0.00014096,2]
[401152006,1767983432771,-300.0,0.00014096,2]
[401152007,1767983432782,-300.0,0.00014096,2]
[401152008,1767983432793,-300.0,0.00014096,2]
[401152009,1767983432804,-300.0,0.00014096,2]
[401152010,1767983432816,-300.0,0.00014096,2]
[401152011,1767983432827,-300.0,0.00014096,2]
[401152012,1767983432838,-300.0,0.00014096,2]
[401152013,1767983432847,-300.0,0.00014096,2]
[401152014,1767983432858,-300.0,0.00014096,2]
[401152015,1767983432868,-300.0,0.00014096,2]
[401152017,1767983432877,-999.0,0.00014285,2]
[401152019,1767983432887,-1500.0,0.00014368,2]
[401152020,1767983432897,-1500.0,0.00014368,2]
[401152021,1767983432906,-1500.0,0.00014368,2]
[401152022,1767983432916,-600.0,0.00014377,2]
[401152023,1767983432926,-1128.323817,0.00014407,2]
[401152024,1767983432936,-594.64070788,0.000149,2]
[401152025,1767983432946,-2000.0,0.00014916,2]
[401152026,1767983432956,-565.85750013,0.00015,2]
[401152058,1767983438435,-452.50526752,0.00015,2]
[401152060,1767983438447,-5814.05404236,0.00015,2]
[401152063,1767983438494,-25734.36326273,0.00015,2]
[401152064,1767983438504,-150.91425556,0.00015,2]
[401152065,1767983438513,-180.108878,0.00015068,2]
[401152066,1767983438523,-800.0,0.00015068,2]
[401152067,1767983438533,-391.0324996,0.00015143,2]
[401152068,1767983438545,-28.9675004,0.00015143,2]
[401152069,1767983438554,-2500.0,0.00015464,2]
[401152070,1767983438564,-204.0,0.00015636,2]
[401152071,1767983438573,-720.0,0.00015815,2]
[401152072,1767983438582,-215.74433231,0.00016,2]
[401152073,1767983438591,-23983.11122682,0.00016778,2]
[401152074,1767983438603,-500.0,0.00016778,2]
[401152075,1767983438614,-4082.11870766,0.00016778,2]
[401152076,1767983438626,-2012.70208524,0.00016778,2]
[401152077,1767983438636,-410.90000001,0.00016778,2]
[401152078,1767983438652,-22845.79270018,0.00016778,2]
[401152079,1767983438662,-37185.9837877,0.00016998,2]
[401152080,1767983438672,-5000.0,0.00016999,2]
[401152081,1767983438682,-8771.62173224,0.00017,2]
[401152083,1767983438695,-7026.33605232,0.00017,2]
[401152085,1767983438706,-17286.51259652,0.00017,2]
[401152087,1767983438717,-15459.16369561,0.00017,2]
[401152088,1767983438728,-2152.23329974,0.00017,2]
[401152328,1767983445471,-3773.03800728,0.00017,2]
[401152329,1767983445481,-151.0,0.00017,2]
[401152330,1767983445493,-1256.06202856,0.0001701,3]
[401152331,1767983445525,-30566.79857998,0.0001701,3]
[401152333,1767983445534,-864.0,0.00017396,2]
[401152335,1767983445544,-231.0,0.00017636,2]
[401152336,1767983445554,-6810.9439048,0.0001799,2]
[401152345,1767983446448,-8190.49914088,0.0001799,2]
[401152347,1767983446503,-1981.82924777,0.0001799,2]
[401152395,1767984631606,-4371.03229022,0.0001,2]
[401152396,1767984631616,-560.0,0.0001,2]
[401152397,1767984631625,-300.0,0.0001233,2]
[401152398,1767984631634,-433.16929996,0.00012334,2]
[401152399,1767984631643,-177.0,0.00013166,2]
[401152400,1767984631652,-500.0,0.00013273,2]
[401152401,1767984631661,-500.0,0.00013273,2]
[401152402,1767984631669,-500.0,0.00013273,2]
[401152403,1767984631678,-500.0,0.00013273,2]
[401152404,1767984631687,-500.0,0.00013273,2]
[401152405,1767984631696,-300.0,0.00013673,2]
[401152406,1767984631705,-978.70866731,0.00013673,2]
[401152407,1767984631717,-14846.40843134,0.00013673,2]
[401152408,1767984631726,-460.83930784,0.00013699,2]
[401152409,1767984631734,-500.0,0.00013699,2]
[401152410,1767984631744,-500.0,0.00013699,2]
[401152411,1767984631753,-500.0,0.00013699,2]
[401152412,1767984631765,-500.0,0.00013699,2]
[401152413,1767984631774,-204.0,0.00015166,2]
[401152414,1767984631783,-500.0,0.0001546,2]
[401152415,1767984631792,-500.0,0.0001546,2]
[401152416,1767984631802,-500.0,0.0001546,2]
[401152417,1767984631810,-500.0,0.0001546,2]
[401152418,1767984631819,-500.0,0.0001546,2]
[401152419,1767984631829,-500.0,0.0001546,2]
[401152420,1767984631838,-500.0,0.0001546,2]
[401152421,1767984631847,-500.0,0.0001546,2]
[401152422,1767984631856,-500.0,0.0001546,2]
[401152423,1767984631865,-542.29669037,0.0001546,2]
[401152424,1767984631874,-500.0,0.0001546,2]
[401152425,1767984631883,-300.0,0.0001546,2]
[401152426,1767984631893,-500.0,0.0001546,2]
[401152427,1767984631902,-500.0,0.0001546,2]
[401152428,1767984631911,-500.0,0.0001546,2]
[401152429,1767984631921,-500.0,0.0001546,2]
[401152430,1767984631930,-500.0,0.0001546,2]
[401152431,1767984631939,-500.0,0.0001546,2]
[401152432,1767984631948,-500.0,0.0001546,2]
[401152433,1767984631957,-500.0,0.0001546,2]
[401152434,1767984631966,-500.0,0.0001546,2]
[401152436,1767984631975,-500.0,0.0001546,2]
[401152438,1767984631984,-500.0,0.0001546,2]
[401152439,1767984631994,-500.0,0.0001546,2]
[401152440,1767984632003,-500.0,0.0001546,2]
[401152441,1767984632012,-500.0,0.0001546,2]
[401152443,1767984632022,-500.0,0.0001546,2]
[401152445,1767984632031,-500.0,0.0001546,2]
[401152447,1767984632040,-500.0,0.0001546,2]
[401152449,1767984632050,-500.0,0.0001546,2]
[401152450,1767984632059,-172.04554518,0.0001546,2]
[401152451,1767984632068,-500.0,0.0001546,2]
[401152452,1767984632077,-521.94138701,0.0001546,2]
[401152453,1767984632087,-500.0,0.0001546,2]
[401152454,1767984632096,-500.0,0.0001546,2]
[401152455,1767984632105,-500.0,0.0001546,2]
[401152456,1767984632115,-500.0,0.0001546,2]
[401152457,1767984632124,-500.0,0.0001546,2]
[401152458,1767984632133,-500.0,0.0001546,2]
[401152459,1767984632143,-500.0,0.0001546,2]
[401152460,1767984632153,-500.0,0.0001546,2]
[401152461,1767984632162,-500.0,0.0001546,2]
[401152462,1767984632172,-500.0,0.0001546,2]
[401152463,1767984632181,-500.0,0.0001546,2]
[401152464,1767984632191,-500.0,0.0001546,2]
[401152465,1767984632201,-500.0,0.0001546,2]
[401152466,1767984632211,-500.0,0.0001546,2]
[401152467,1767984632220,-500.0,0.0001546,2]
[401152468,1767984632230,-500.0,0.0001546,2]
[401152469,1767984632239,-500.0,0.0001546,2]
[401152470,1767984632249,-500.0,0.0001546,2]
[401152471,1767984632260,-500.0,0.0001546,2]
[401152472,1767984632269,-500.0,0.0001546,2]
[401152473,1767984632278,-500.0,0.0001546,2]
[401152475,1767984632287,-500.0,0.0001546,2]
[401152476,1767984632296,-500.0,0.0001546,2]
[401152477,1767984632305,-500.0,0.0001546,2]
[401152479,1767984632314,-500.0,0.0001546,2]
[401152481,1767984632324,-500.0,0.0001546,2]
[401152483,1767984632333,-500.0,0.0001546,2]
[401152485,1767984632342,-500.0,0.0001546,2]
[401152486,1767984632351,-500.0,0.0001546,2]
[401152487,1767984632360,-500.0,0.0001546,2]
[401152488,1767984632370,-500.0,0.0001546,2]
[401152489,1767984632379,-500.0,0.0001546,2]
[401152490,1767984632389,-500.0,0.0001546,2]
[401152491,1767984632399,-500.0,0.0001546,2]
[401152492,1767984632409,-500.0,0.0001546,2]
[401152493,1767984632418,-500.0,0.0001546,2]
[401152494,1767984632427,-500.0,0.0001546,2]
[401152495,1767984632436,-500.0,0.0001546,2]
[401152496,1767984632446,-500.0,0.0001546,2]
[401152497,1767984632454,-500.0,0.0001546,2]
[401152498,1767984632464,-500.0,0.0001546,2]